fUST/lending_fUST_20240922
["ID","MTS","AMOUNT","RATE_DAILY","PERIOD"]
[338872591,1726970830220,-500.0,0.00014809,2]
[338872592,1726970830245,-500.0,0.00014809,2]
[338872593,1726970830266,-500.0,0.00014809,2]
[338872594,1726970830287,-500.0,0.00014809,2]
[338872595,1726970830310,-200.0,0.0001483,2]
[338872596,1726970830333,-500.0,0.00014921,2]
[338872597,1726970830355,-500.0,0.00014921,2]
[338872598,1726970830383,-500.0,0.00014921,2]
[338872599,1726970830406,-1161.83,0.00014921,2]
[338872600,1726970830428,-500.0,0.00014921,2]
[338872601,1726970830451,-500.0,0.00014921,2]
[338872602,1726970830472,-500.0,0.00014922,2]
[338872603,1726970830494,-500.0,0.00014922,2]
[338872604,1726970830518,-500.0,0.00014922,2]
[338872605,1726970830544,-500.0,0.00014922,2]
[338872606,1726970830566,-500.0,0.00014922,2]
[338872607,1726970830591,-500.0,0.00014922,2]
[338872608,1726970830614,-500.0,0.00014922,2]
[338872609,1726970830638,-500.0,0.00014922,2]
[338872610,1726970830662,-500.0,0.00014922,2]
[338872611,1726970830682,-500.0,0.00014922,2]
[338872612,1726970830704,-500.0,0.00014922,2]
[338872613,1726970830726,-509.00797045,0.00014922,2]
[338872614,1726970830748,-500.0,0.00014922,2]
[338872615,1726970830771,-621.77234772,0.00014922,2]
[338872616,1726970830791,-500.0,0.00014922,2]
[338872617,1726970830812,-500.0,0.00014922,2]
[338872618,1726970830832,-500.0,0.00014922,2]
[338872619,1726970830852,-500.0,0.00014922,2]
[338872620,1726970830871,-500.0,0.00014922,2]
[338872621,1726970830892,-500.0,0.00014922,2]
[338872622,1726970830914,-500.0,0.00014923,2]
[338872623,1726970830934,-500.0,0.00014923,2]
[338872624,1726970830956,-687.97049229,0.00014982,2]
[338872625,1726970841104,-500.0,0.00014921,2]
[338872626,1726970841130,-5000.0,0.00015,2]
[338872627,1726970841152,-500.0,0.00015082,2]
[338872628,1726970841174,-186.62086349,0.00015082,2]
[338872629,1726970841195,-500.0,0.00015082,2]
[338872630,1726970841217,-578.96447348,0.00015082,2]
[338872631,1726970841240,-500.0,0.00015082,2]
[338872632,1726970841261,-500.0,0.00015082,2]
[338872633,1726970841283,-500.0,0.00015082,2]
[338872634,1726970841305,-500.0,0.00015082,2]
[338872635,1726970841329,-603.28,0.00015082,2]
[338872636,1726970841350,-590.04,0.00015082,2]
[338872637,1726970841371,-500.0,0.00015082,2]
[338872638,1726970841391,-500.0,0.00015082,2]
[338872639,1726970841412,-500.0,0.00015082,2]
[338872640,1726970841433,-500.0,0.00015082,2]
[338872641,1726970841455,-563.04645562,0.00015083,2]
[338872642,1726970841478,-500.0,0.00015083,2]
[338872643,1726970841499,-500.0,0.00015083,2]
[338872644,1726970841522,-500.0,0.00015083,2]
[338872645,1726970841546,-500.0,0.00015083,2]
[338872646,1726970841567,-500.0,0.00015195,2]
[338872647,1726970841590,-1161.83,0.00015195,2]
[338872648,1726970841614,-215.96,0.00015195,2]
[338872649,1726970841634,-500.0,0.00015195,2]
[338872650,1726970841657,-502.99934172,0.00015196,2]
[338872651,1726970841678,-500.0,0.00015196,2]
[338872652,1726970841699,-500.0,0.00015196,2]
[338872653,1726970841720,-500.0,0.00015196,2]
[338872654,1726970841740,-500.0,0.00015196,2]
[338872655,1726970841762,-500.0,0.00015196,2]
[338872656,1726970841951,-500.0,0.00015196,2]
[338872657,1726970841973,-500.0,0.00015196,2]
[338872658,1726970841995,-500.0,0.00015196,2]
[338872659,1726970842017,-500.0,0.00015196,2]
[338872660,1726970842038,-500.0,0.00015196,2]
[338872661,1726970842059,-500.0,0.00015196,2]
[338872662,1726970842080,-500.0,0.0001528,2]
[338872663,1726970842103,-360.61,0.00015356,2]
[338872664,1726970842123,-500.0,0.00015356,2]
[338872665,1726970842145,-500.0,0.00015356,2]
[338872666,1726970842166,-603.28,0.00015356,2]
[338872667,1726970842188,-590.04,0.00015356,2]
[338872668,1726970842210,-500.0,0.00015356,2]
[338872669,1726970842231,-500.0,0.00015356,2]
[338872670,1726970842252,-529.19,0.00015356,2]
[338872671,1726970842274,-508.09623837,0.00015356,2]
[338872672,1726970842295,-500.0,0.00015357,2]
[338872673,1726970842316,-500.87385076,0.00015369,2]
[338872674,1726970842337,-500.78772905,0.00015373,2]
[338872675,1726970842357,-500.64112753,0.00015386,2]
[338872676,1726970842379,-413.12501748,0.00015386,2]
[338872677,1726970842400,-500.0,0.00015386,2]
[338872678,1726970842422,-1161.83,0.00015469,2]
[338872679,1726970842443,-500.0,0.00015469,2]
[338872680,1726970842466,-500.0,0.0001547,2]
[338872681,1726970842487,-500.0,0.0001547,2]
[338872682,1726970842510,-500.0,0.0001547,2]
[338872683,1726970842531,-500.0,0.0001547,2]
[338872684,1726970842557,-500.0,0.0001547,2]
[338872685,1726970842579,-500.0,0.0001547,2]
[338872686,1726970842604,-500.0,0.0001547,2]
[338872687,1726970842627,-221.75777977,0.0001547,2]
[338872688,1726970842651,-500.0,0.0001547,2]
[338872689,1726970842673,-603.28,0.0001563,2]
[338872690,1726970842695,-590.04,0.0001563,2]
[338872691,1726970842717,-500.0,0.0001563,2]
[338872692,1726970842739,-1161.83,0.00015743,2]
[338872693,1726970842759,-500.0,0.00015743,2]
[338872694,1726970842780,-500.0,0.00015744,2]
[338872695,1726970842801,-500.0,0.00015744,2]
[338872696,1726970842821,-545.19,0.00015744,2]
[338872697,1726970842841,-500.0,0.00015744,2]
[338872698,1726970842862,-500.0,0.00015744,2]
[338872699,1726970842882,-603.28,0.00015904,2]
[338872700,1726970842902,-590.04,0.00015904,2]
[338872701,1726970842923,-500.0,0.00015904,2]
[338872702,1726970842944,-1161.83,0.00016017,2]
[338872703,1726970842971,-500.0,0.00016017,2]
[338872704,1726970842991,-500.0,0.00016018,2]
[338872705,1726970843012,-603.28,0.00016178,2]
[338872706,1726970843032,-590.04,0.00016178,2]
[338872707,1726970843055,-500.0,0.00016178,2]
[338872708,1726970843077,-420.0,0.0001621,2]
[338872709,1726970843100,-249.0,0.00016289,2]
[338872710,1726970843123,-1161.83,0.00016291,2]
[338872711,1726970843146,-500.0,0.00016291,2]
[338872712,1726970843165,-500.0,0.00016292,2]
[338872713,1726970843184,-200.0,0.00016438,2]
[338872714,1726970843204,-200.0,0.00016438,2]
[338872715,1726970843226,-200.0,0.00016438,2]
[338872716,1726970843245,-200.0,0.00016438,2]
[338872717,1726970843265,-200.0,0.00016438,2]
[338872718,1726970843286,-200.0,0.00016452,2]
[338872719,1726970843309,-603.28,0.00016452,2]
[338872720,1726970843331,-590.04,0.00016452,2]
[338872721,1726970843352,-500.0,0.00016452,2]
[338872722,1726970843373,-1161.83,0.00016565,2]
[338872723,1726970843393,-500.0,0.00016565,2]
[338872724,1726970843413,-500.0,0.00016566,2]
[338872725,1726970843434,-183.59381076,0.0001665,2]
[338872726,1726970843455,-603.28,0.00016726,2]
[338872727,1726970843476,-590.04,0.00016726,2]
[338872728,1726970843500,-500.0,0.00016726,2]
[338872729,1726970843524,-1000.0,0.00016756,2]
[338872730,1726970843551,-1161.83,0.00016839,2]
[338872731,1726970843572,-306.66623063,0.00016839,2]
[338872732,1726970843594,-500.0,0.0001684,2]
[338872733,1726970843616,-603.28,0.00017,2]
[338872734,1726970843639,-590.04,0.00017,2]
[338872735,1726970843659,-500.0,0.00017,2]
[338872736,1726970843680,-1161.83,0.00017113,2]
[338872737,1726970843700,-544.47893728,0.00017114,2]
[338872738,1726970843720,-247.42,0.000172,2]
[338872739,1726970843742,-603.28,0.00017274,2]
[338872740,1726970843761,-590.04,0.00017274,2]
[338872741,1726970843784,-500.0,0.00017274,2]
[338872742,1726970843805,-300.0,0.000173,7]
[338872743,1726970843830,-1161.83,0.00017387,2]
[338872744,1726970843854,-603.28,0.00017548,2]
[338872745,1726970843874,-590.04,0.00017548,2]
[338872746,1726970843895,-500.0,0.00017548,2]
[338872747,1726970843917,-1161.83,0.00017661,2]
[338872748,1726970843938,-587.0,0.00017744,2]
[338872749,1726970843960,-297.55886156,0.00017788,2]
[338872750,1726970843980,-500.0,0.00017788,2]
[338872751,1726970844001,-500.0,0.00017788,2]
[338872752,1726970844024,-603.28,0.00017822,2]
[338872753,1726970844049,-590.04,0.00017822,2]
[338872754,1726970844070,-500.0,0.00017822,2]
[338872755,1726970844092,-1161.83,0.00017935,2]
[338872756,1726970844113,-603.28,0.00018096,2]
[338872757,1726970844135,-590.04,0.00018096,2]
[338872758,1726970844156,-500.0,0.00018096,2]
[338872759,1726970844178,-1161.83,0.00018209,2]
[338872760,1726970844200,-603.28,0.0001837,2]
[338872761,1726970844221,-590.04,0.0001837,2]
[338872762,1726970844252,-500.0,0.0001837,2]
[338872763,1726970844273,-1161.83,0.00018483,2]
[338872764,1726970844295,-27418.3811365,0.00018634,2]
[338872765,1726970844330,-276.8321908,0.00016,2]
[338872766,1726970844352,-4087.9251673,0.00018634,2]
[338872767,1726970844373,-35034.0661935,0.00018634,2]
[338872768,1726970844394,-603.28,0.00018644,2]
[338872769,1726970844415,-590.04,0.00018644,2]
[338872770,1726970844435,-500.0,0.00018644,2]
[338872771,1726970844457,-1161.83,0.00018757,2]
[338872772,1726970844478,-1500.0,0.00018759,2]
[338872773,1726970844498,-300.453019,0.000188,7]
[338872774,1726970844523,-1037.68456988,0.00018827,2]
[338872775,1726970844546,-603.28,0.00018918,2]
[338872776,1726970844566,-590.04,0.00018918,2]
[338872777,1726970844587,-500.0,0.00018918,2]
[338872778,1726970844609,-1161.83,0.00019031,2]
[338872779,1726970844632,-1000.0,0.00019158,2]
[338872780,1726970844652,-1000.0,0.00019158,2]
[338872781,1726970844672,-161.118825,0.00019178,2]
[338872782,1726970844693,-603.28,0.00019192,2]
[338872783,1726970844715,-590.04,0.00019192,2]
[338872784,1726970844734,-500.0,0.00019192,2]
[338872785,1726970844757,-1161.83,0.00019305,2]
[338872786,1726970844778,-823.0,0.00019424,2]
[338872787,1726970844799,-603.28,0.00019466,2]
[338872788,1726970844820,-590.04,0.00019466,2]
[338872789,1726970844840,-500.0,0.00019466,2]
[338872790,1726970844861,-153.0,0.00019531,2]
[338872791,1726970844883,-1161.83,0.00019579,2]
[338872792,1726970844905,-603.28,0.0001974,2]
[338872793,1726970844927,-590.04,0.0001974,2]
[338872794,1726970844948,-500.0,0.0001974,2]
[338872795,1726970844971,-1161.83,0.00019853,2]
[338872796,1726970844993,-603.28,0.00020014,2]
[338872797,1726970845014,-590.04,0.00020014,2]
[338872798,1726970845038,-617.11981003,0.00020014,2]
[338872799,1726970845060,-1216.0,0.00020028,2]
[338872800,1726970845083,-1161.83,0.00020127,2]
[338872801,1726970845107,-603.28,0.00020288,2]
[338872802,1726970845129,-590.04,0.00020288,2]
[338872803,1726970845151,-654.05,0.00020327,2]
[338872804,1726970845171,-150.316,0.00020327,2]
[338872805,1726970845193,-1161.83,0.00020401,2]
[338872806,1726970845218,-603.28,0.00020562,2]
[338872807,1726970845239,-590.04,0.00020562,2]
[338872808,1726970845260,-152.33630927,0.00020644,2]
[338872809,1726970845283,-1161.83,0.00020675,2]
[338872810,1726970845306,-3200.0,0.00020758,2]
[338872811,1726970845328,-300.0,0.00020758,2]
[338872812,1726970845349,-150.0,0.00020758,2]
[338872813,1726970845372,-603.28,0.00020836,2]
[338872814,1726970845396,-590.04,0.00020836,2]
[338872815,1726970845418,-1161.83,0.00020949,2]
[338872816,1726970845443,-1000.0,0.0002096,2]
[338872817,1726970845466,-306.385,0.0002099,2]
[338872818,1726970845488,-3000.0,0.00021,2]
[338872819,1726970845509,-3000.0,0.0002101,2]
[338872820,1726970845531,-3000.0,0.0002102,2]
[338872821,1726970845556,-3000.0,0.0002103,2]
[338872822,1726970845576,-3000.0,0.0002104,2]
[338872823,1726970845598,-184.897743,0.0002105,2]
[338872824,1726970845620,-3000.0,0.0002105,2]
[338872825,1726970845640,-3000.0,0.0002106,2]
[338872826,1726970845661,-31506.3063038,0.0002106,3]
[338872827,1726970845682,-35034.0661935,0.0002106,3]
[338872828,1726970845702,-3000.0,0.0002107,2]
[338872829,1726970845843,-500.0,0.00021073,2]
[338872830,1726970845864,-3000.0,0.0002108,2]
[338872831,1726970845885,-3000.0,0.0002109,2]
[338872832,1726970845906,-3000.0,0.000211,2]
[338872833,1726970845927,-31506.3063038,0.0002111,3]
[338872834,1726970845949,-35034.0661935,0.0002111,3]
[338872835,1726970845970,-3000.0,0.0002111,2]
[338872836,1726970845991,-181.363209,0.0002111,2]
[338872837,1726970846011,-181.363209,0.0002111,2]
[338872838,1726970846031,-244.219565,0.0002111,2]
[338872839,1726970846051,-151.0,0.0002111,2]
[338872840,1726970846071,-479.03509,0.0002111,2]
[338872841,1726970846091,-479.03509,0.0002111,2]
[338872842,1726970846110,-151.0,0.0002111,2]
[338872843,1726970846131,-603.28,0.0002111,2]
[338872844,1726970846152,-590.04,0.0002111,2]
[338872845,1726970846172,-151.0,0.0002111,2]
[338872846,1726970846193,-151.0,0.0002111,2]
[338872847,1726970846213,-151.0,0.0002111,2]
[338872848,1726970846239,-151.0,0.0002111,2]
[338872849,1726970846260,-151.0,0.0002111,2]
[338872850,1726970846280,-151.0,0.0002111,2]
[338872851,1726970846305,-151.0,0.0002111,2]
[338872852,1726970846325,-151.0,0.0002111,2]
[338872853,1726970846345,-151.0,0.0002111,2]
[338872854,1726970846366,-3000.0,0.0002112,2]
[338872855,1726970846386,-3000.0,0.0002113,2]
[338872856,1726970846408,-3000.0,0.0002114,2]
[338872857,1726970846429,-3000.0,0.0002115,2]
[338872858,1726970846450,-3000.0,0.0002116,2]
[338872859,1726970846471,-1001.38399531,0.00021161,2]
[338872860,1726970846492,-3000.0,0.0002117,2]
[338872861,1726970846512,-3000.0,0.0002118,2]
[338872862,1726970846534,-3000.0,0.0002119,2]
[338872863,1726970846559,-3000.0,0.000212,2]
[338872864,1726970846580,-151.0,0.000212,2]
[338872865,1726970846601,-290.729138,0.000212,2]
[338872866,1726970846624,-151.0,0.000212,2]
[338872867,1726970846645,-3000.0,0.0002121,2]
[338872868,1726970846665,-151.0,0.0002121,2]
[338872869,1726970846685,-151.0,0.0002121,2]
[338872870,1726970846707,-151.0,0.0002121,2]
[338872871,1726970846728,-151.0,0.0002121,2]
[338872872,1726970846749,-151.0,0.0002121,2]
[338872873,1726970846770,-151.0,0.0002121,2]
[338872874,1726970846792,-3000.0,0.0002122,2]
[338872875,1726970846813,-181.363209,0.0002122,2]
[338872876,1726970846833,-181.363209,0.0002122,2]
[338872877,1726970846854,-151.0,0.0002122,2]
[338872878,1726970846874,-479.03509,0.0002122,2]
[338872879,1726970846894,-479.03509,0.0002122,2]
[338872880,1726970846916,-151.0,0.0002122,2]
[338872881,1726970846936,-151.0,0.0002122,2]
[338872882,1726970846955,-151.0,0.0002122,2]
[338872883,1726970846977,-152.264871,0.0002122,2]
[338872884,1726970846998,-151.0,0.0002122,2]
[338872885,1726970847023,-151.0,0.0002122,2]
[338872886,1726970847045,-202.905768,0.0002122,2]
[338872887,1726970847067,-151.0,0.0002122,2]
[338872888,1726970847087,-251.411282,0.0002122,2]
[338872889,1726970847108,-31506.3063038,0.0002122,3]
[338872890,1726970847131,-14506.52400651,0.0002122,3]
[338872913,1726971032385,-500.0,0.00014921,2]
[338872914,1726971032395,-317.73137717,0.00015082,2]
[338872915,1726971032404,-500.0,0.00015195,2]
[338872916,1726971032414,-500.0,0.00015469,2]
[338872917,1726971032423,-500.0,0.00015743,2]
[338872918,1726971032432,-603.4537,0.00016017,2]
[338872919,1726971032441,-240.3,0.000174,2]
[338872920,1726971032450,-1910.58140791,0.00020633,2]
[338872929,1726971038756,-13947.28828209,0.00020633,2]
[338872930,1726971038766,-1000.0,0.0002095,2]
[338872931,1726971038778,-310.10376655,0.0002112,2]
[338872932,1726971038787,-432.509,0.0002122,2]
[338872933,1726971038797,-500.0,0.0002122,2]
[338872934,1726971038808,-3000.0,0.0002123,2]
[338872935,1726971038817,-181.363209,0.0002123,2]
[338872936,1726971038833,-181.363209,0.0002123,2]
[338872937,1726971038848,-3000.0,0.0002124,2]
[338872938,1726971038860,-3000.0,0.0002125,2]
[338872939,1726971038870,-3000.0,0.0002126,2]
[338872940,1726971038879,-590.17,0.00021384,2]
[338872941,1726971038889,-500.0,0.00021493,2]
[338872942,1726971038899,-500.0,0.00021767,2]
[338872943,1726971038910,-166.666666,0.00021918,2]
[338872944,1726971038921,-500.0,0.00022041,2]
[338872945,1726971038931,-300.43,0.00022315,2]
[338872946,1726971038941,-6392.91772104,0.00022367,2]
[338872947,1726971038952,-166.666666,0.00022431,2]
[338872948,1726971038961,-821.97768712,0.0002244,2]
[338872949,1726971038972,-151.0,0.0002254,7]
[338872950,1726971038982,-6392.91772104,0.000226,2]
[338872951,1726971038992,-6392.91772104,0.00022918,2]
[338872952,1726971039001,-166.666666,0.00022944,2]
[338872953,1726971039011,-181.363209,0.00022949,7]
[338872954,1726971039021,-181.363209,0.00022949,7]
[338872955,1726971039031,-209.706563,0.00022949,7]
[338872956,1726971039040,-151.0,0.00022949,7]
[338872957,1726971039051,-151.0,0.00022949,7]
[338872958,1726971039062,-26968.8753793,0.00023018,3]
[338872959,1726971039072,-1420.43588476,0.00023018,3]
[338872960,1726971039081,-1216.0,0.00023028,2]
[338872961,1726971039093,-6392.91772104,0.0002322,2]
[338872962,1726971039102,-151.0,0.00023248,2]
[338872963,1726971039114,-524.0,0.00023327,2]
[338872964,1726971039125,-150.0,0.00023327,2]
[338872965,1726971039135,-306.0,0.00023388,2]
[338872966,1726971039145,-153.0,0.00023388,2]
[338872967,1726971039154,-153.0,0.00023388,2]
[338872968,1726971039164,-153.0,0.00023388,2]
[338872969,1726971039174,-166.666666,0.00023456,2]
[338872970,1726971039184,-6392.91772104,0.00023539,2]
[338872971,1726971039193,-6392.91772104,0.00023808,2]
[338872972,1726971039203,-6392.91772104,0.00023945,2]
[338872973,1726971039213,-166.666666,0.00023969,2]
[338872974,1726971039222,-4054.0,0.00024,2]
[338872975,1726971039232,-302.63687509,0.00024,2]
[338872976,1726971039243,-151.0,0.00024096,7]
[338872977,1726971039253,-152.013798,0.00024173,7]
[338872978,1726971039265,-151.0,0.00024173,7]
[338872979,1726971039274,-151.0,0.00024173,7]
[338872980,1726971039285,-184.89774299,0.00024188,2]
[338872981,1726971039295,-6392.91772104,0.00024217,2]
[338872982,1726971039305,-302.63687509,0.0002424,2]
[338872983,1726971039315,-26968.8753793,0.00024278,3]
[338872984,1726971039325,-1420.43588476,0.00024278,3]
[338872985,1726971039334,-151.0,0.00024279,7]
[338872986,1726971039344,-151.0,0.00024279,7]
[338872987,1726971039354,-151.0,0.00024279,7]
[338872988,1726971039367,-151.0,0.00024279,7]
[338872989,1726971039376,-151.0,0.00024279,7]
[338872990,1726971039387,-181.363209,0.00024288,7]
[338872991,1726971039397,-181.363209,0.00024288,7]
[338872992,1726971039407,-151.0,0.00024288,7]
[338872993,1726971039418,-151.0,0.00024288,7]
[338872994,1726971039428,-151.0,0.00024298,7]
[338872995,1726971039438,-150.31734997,0.00024306,2]
[338872996,1726971039452,-302.63687509,0.0002448,2]
[338872997,1726971039462,-166.666666,0.00024482,2]
[338872998,1726971039472,-411.5288097,0.00024509,2]
[338872999,1726971039481,-500.0,0.00024546,2]
[338873000,1726971039491,-6392.91772107,0.000246,2]
[338873001,1726971039501,-229.16552499,0.000246,2]
[338873002,1726971039511,-26968.8753793,0.00024637,3]
[338873003,1726971039521,-1420.43588476,0.00024637,3]
[338873004,1726971039531,-151.0,0.00024641,3]
[338873005,1726971039540,-181.363209,0.00024647,7]
[338873006,1726971039550,-181.363209,0.00024647,7]
[338873007,1726971039560,-151.0,0.00024647,7]
[338873008,1726971039570,-151.0,0.00024647,7]
[338873009,1726971039584,-24833.07295075,0.00024651,3]
[338873024,1726971040351,-2135.80242855,0.00024651,3]
[338873026,1726971040362,-1420.43588476,0.00024651,3]
[338873028,1726971040372,-272.92379483,0.00024657,2]
[338873030,1726971040382,-7942.05173869,0.00024657,2]
[338873032,1726971040394,-200.0,0.00024658,15]
[338873034,1726971040405,-380.0,0.00024658,2]
[338873036,1726971040415,-181.363209,0.0002466,7]
[338873038,1726971040424,-181.363209,0.0002466,7]
[338873039,1726971040435,-151.0,0.0002466,7]
[338873040,1726971040445,-151.0,0.0002466,7]
[338873041,1726971040455,-181.363209,0.00024661,7]
[338873042,1726971040465,-181.363209,0.00024661,7]
[338873043,1726971040475,-151.0,0.00024661,7]
[338873044,1726971040485,-151.0,0.0002467,7]
[338873045,1726971040495,-151.0,0.0002467,7]
[338873046,1726971040505,-151.0,0.0002467,7]
[338873047,1726971040515,-155.775444,0.0002467,7]
[338873048,1726971040525,-151.0,0.0002467,7]
[338873049,1726971040535,-151.0,0.0002467,7]
[338873050,1726971040544,-151.0,0.0002467,7]
[338873051,1726971040553,-151.0,0.0002467,7]
[338873052,1726971040563,-151.0,0.0002467,7]
[338873053,1726971040575,-151.0,0.0002468,7]
[338873054,1726971040586,-151.0,0.0002468,7]
[338873055,1726971040595,-151.0,0.0002468,7]
[338873056,1726971040605,-151.0,0.0002468,7]
[338873057,1726971040616,-151.0,0.0002468,7]
[338873058,1726971040627,-151.0,0.0002468,7]
[338873059,1726971040640,-152.742922,0.0002468,7]
[338873060,1726971040651,-151.0,0.0002468,7]
[338873061,1726971040661,-152.612083,0.0002468,7]
[338873062,1726971040670,-151.906016,0.0002468,7]
[338873063,1726971040680,-151.0,0.0002468,7]
[338873064,1726971040690,-151.0,0.0002468,7]
[338873065,1726971040699,-151.0,0.0002468,7]
[338873066,1726971040709,-151.0,0.0002469,7]
[338873067,1726971040718,-151.0,0.0002469,7]
[338873068,1726971040727,-169.816527,0.0002469,7]
[338873069,1726971040737,-151.0,0.0002469,7]
[338873070,1726971040746,-151.0,0.0002469,7]
[338873071,1726971040756,-151.0,0.0002469,7]
[338873072,1726971040765,-151.802188,0.0002469,7]
[338873073,1726971040775,-151.0,0.0002469,7]
[338873074,1726971040785,-151.0,0.0002469,7]
[338873075,1726971040795,-151.0,0.0002469,7]
[338873076,1726971040804,-134844.376896,0.0002469,3]
[338873077,1726971040814,-7102.1794238,0.0002469,3]
[338873078,1726971040824,-500.0,0.00024699,2]
[338873079,1726971040834,-500.0,0.00024699,2]
[338873080,1726971040843,-500.0,0.00024699,2]
[338873081,1726971040853,-231.9399789,0.00024699,2]
[338873082,1726971040864,-500.0,0.00024699,2]
[338873083,1726971040873,-255.21968715,0.00024699,2]
[338873084,1726971040884,-50392.1765077,0.000247,14]
[338873085,1726971040894,-1223.52,0.000247,7]
[338873086,1726971040904,-27786.5,0.000247,14]
[338873087,1726971040914,-21920.74987837,0.000247,14]
[338873088,1726971042078,-12110.990206,0.000247,14]
[338873097,1726971043651,-153.0,0.00023388,2]
[338873098,1726971043661,-1008.39326374,0.000246,3]
[338873099,1726971043671,-3971.02586935,0.00024657,2]
[338873100,1726971043681,-85049.29991563,0.000247,14]
[338873101,1726971043690,-3249.37,0.000247,14]
[338873102,1726971043700,-151.0,0.000247,7]
[338873103,1726971043710,-151.0,0.000247,7]
[338873104,1726971043720,-151.0,0.000247,7]
[338873105,1726971043729,-182.180296,0.000247,7]
[338873110,1726971043740,-151.0,0.000247,7]
[338873111,1726971043902,-151.0,0.000247,7]
[338873112,1726971043915,-151.0,0.000247,7]
[338873113,1726971043925,-151.0,0.000247,7]
[338873114,1726971043934,-151.0,0.000247,7]
[338873115,1726971043943,-151.0,0.000247,7]
[338873116,1726971043953,-181.363209,0.000247,7]
[338873117,1726971043962,-181.363209,0.000247,7]
[338873118,1726971043972,-181.363209,0.000247,7]
[338873119,1726971043984,-181.363215,0.000247,7]
[338873120,1726971043994,-151.0,0.000247,7]
[338873121,1726971044005,-151.0,0.000247,7]
[338873122,1726971044014,-151.0,0.000247,7]
[338873123,1726971044026,-152.104047,0.000247,7]
[338873124,1726971044035,-151.0,0.000247,7]
[338873125,1726971044045,-479.03509,0.000247,7]
[338873126,1726971044055,-479.03509,0.000247,7]
[338873127,1726971044064,-151.0,0.000247,7]
[338873128,1726971044074,-153.115859,0.000247,7]
[338873129,1726971044083,-151.0,0.000247,7]
[338873130,1726971044092,-302.63687509,0.0002472,2]
[338873131,1726971044102,-810.0,0.000248,2]
[338873132,1726971044113,-151.36378773,0.0002495,2]
[338873133,1726971044122,-302.63687509,0.0002496,2]
[338873134,1726971044131,-200.0,0.00025,2]
[338873135,1726971044140,-720.91,0.000251,7]
[338873136,1726971044150,-453.95531264,0.000252,4]
[338873137,1726971044159,-821.97768711,0.0002522,2]
[338873138,1726971044168,-810.0,0.000254,2]
[338873139,1726971044177,-453.95531264,0.0002544,4]
[338873140,1726971044187,-453.95531264,0.0002568,4]
[338873141,1726971044196,-500.0,0.00025916,2]
[338873142,1726971044204,-453.95531264,0.0002592,4]
[338873143,1726971044214,-200.0,0.00026,120]
[338873144,1726971044223,-244.5,0.00026,2]
[338873145,1726971044232,-244.5,0.00026,2]
[338873146,1726971044242,-810.0,0.00026,2]
[338873147,1726971044252,-1216.0,0.00026028,2]
[338873148,1726971044261,-151.0,0.00026034,4]
[338873149,1726971044271,-454.71107349,0.0002616,4]
[338873150,1726971044280,-660.0,0.00026301,2]
[338873151,1726971044290,-524.0,0.00026327,2]
[338873152,1726971044299,-150.0,0.00026327,2]
[338873153,1726971044309,-305.792601,0.00026388,2]